Cogmind - Beta 12 @@@ ROGUE MODE // 2023.03.18 @ 02:03:17 Player: dhtilly Result: Destroyed by D-53 Grenadier with Mini Grenade Launcher Performance ------------- Evolutions (0) 0 Regions Visited (4) 800 Robots Destroyed (30) 150 Value Destroyed (494) 494 Prototype IDs (23) 460 Alien Tech Used (0) 0 Bonus (359) 359 TOTAL SCORE: 2263 Bonus ------- Follower Combat Kills 59 Aligned with FarCom 300 Cogmind --------- Core Integrity 0/250 Matter 278/300 Energy 100/100 System Corruption 3% Temperature Cool (0) Movement Walking (260) Ox2 Location -9/Mines Parts ------- > --- POWER (1) -------- (None) > --- PROPULSION (2) --- Aluminum Leg > --- UTILITY (2) ------ Large Storage Unit > --- WEAPON (2) ------- Light Assault Rifle > --- INVENTORY (15) --- Light Ion Engine Aluminum Leg Wheel Heat Sink Medium Storage Unit Huge Storage Unit Structural Scanner Signal Interpreter Improved Terrain Scanner Hacking Suite Latent Energy Streamer Light Assault Rifle Grenade Launcher Grenade Launcher Grenade Launcher Peak State ------------ > --- POWER ------------ Reinforced Ion Engine > --- PROPULSION ------- Aluminum Leg Aluminum Leg > --- UTILITY ---------- Large Storage Unit Light Armor Plating > --- WEAPON ----------- Latent Energy Streamer Light Assault Rifle > --- INVENTORY -------- Light Ion Engine Aluminum Leg Wheel Heat Sink Medium Storage Unit Huge Storage Unit Structural Scanner Signal Interpreter Improved Terrain Scanner Hacking Suite Light Assault Rifle Light Assault Rifle Grenade Launcher Grenade Launcher Grenade Launcher [Rating: 18] Favorites ----------- Power Ion Engine Engine Ion Engine Propulsion Aluminum Leg Leg Aluminum Leg Wheel Compact Wheel Utility Large Storage Unit Device Improved Terrain Scanner Storage Large Storage Unit Processor Transport Network Coupler Protection Light Armor Plating Weapon Light Assault Rifle Energy Cannon Latent Energy Streamer Ballistic Gun Light Assault Rifle Launcher Grenade Launcher Build | -11 -10 -10 -10 -9 ------- Run | Jun Mat Min Exi Min Slots Evolved . | . . . . . Power . | . . . . . Propulsion . | . . . . . Utility . | . . . . . Weapon . | . . . . . Parts Attached 26 | 7 8 5 . 6 Power 3 | 1 1 . . 1 Engine 3 | 1 1 . . 1 Core . | . . . . . Reactor . | . . . . . Propulsion 5 | 3 . 2 . . Treads . | . . . . . Leg 4 | 2 . 2 . . Wheel 1 | 1 . . . . Hover . | . . . . . Flight . | . . . . . Utility 9 | 1 6 1 . 1 Device 2 | . 1 1 . . Storage 5 | 1 4 . . . Processor 1 | . 1 . . . Hackware . | . . . . . Protection 1 | . . . . 1 Artifact . | . . . . . Weapon 9 | 2 1 2 . 4 Energy Gun . | . . . . . Energy Cannon 1 | . . . . 1 Ballistic Gun 7 | 2 1 2 . 2 Ballistic Cannon . | . . . . . Launcher 1 | . . . . 1 Special Weapon . | . . . . . Impact Weapon . | . . . . . Slashing Weapon . | . . . . . Piercing Weapon . | . . . . . Special Melee Weapon . | . . . . . Unidentified Prototypes . | . . . . . Parts Lost 9 | . 1 3 . 5 Power 2 | . . . . 2 Propulsion 3 | . . 2 . 1 Utility 1 | . . . . 1 Weapon 3 | . 1 1 . 1 Highest Loss Streak 4 | . 1 2 . 4 To Critical Strikes . | . . . . . Average Slot Usage (%) 98 | . 96 99 100 98 Engine 13 | . 14 14 14 13 Leg 27 | . 28 27 28 27 Device 10 | . 6 14 14 6 Storage 14 | . 14 14 14 14 Processor 1 | . 3 . . . Ballistic Gun 26 | . 28 28 28 18 Naked Turns . | . . . . . Heaviest Build 44 | 12 30 29 28 44 Greatest Support 20 | 20 20 20 20 20 Greatest Overweight (x) 2 | . 1 2 1 2 Average Overweight (x) . | . . 1 1 1 Largest Inventory Capacity 25 | 8 25 15 15 15 Average Capacity 13 | 7 12 15 15 15 Most Carried 15 | 5 12 15 15 15 Average Carried 11 | 3 8 13 14 14 Final Capacity 15 | 8 15 15 15 15 Final Carried 15 | 4 12 14 15 15 Class Distribution -------------------- 48% | Scavenger-Mutant 47% | Mutant 4% | Scavenger-Skirmisher Dominant Class ---------------- Mutant | -10/Materials Scavenger-Mutant | -10/Mines Scavenger-Mutant | -10/Exiles Scavenger-Mutant | -9/Mines Resources | -11 -10 -10 -10 -9 ----------- Run | Jun Mat Min Exi Min Matter Collected 894 | 247 358 126 . 163 Remotely . | . . . . . Salvage Created 748 | . 455 133 . 160 Parts 65 | . 43 15 . 7 Haulers Intercepted 1 | . 1 . . . Recyclers Shooed 1 | . 1 . . . Parts Field Recycled . | . . . . . Retrieved Matter . | . . . . . Parts Self-Destructed . | . . . . . Prevented . | . . . . . Kills | -11 -10 -10 -10 -9 ------- Run | Jun Mat Min Exi Min Combat Hostiles Destroyed 42 | . 15 7 . 20 Guns 23 | . 15 7 . 1 AOE 19 | . . . . 19 Classes Destroyed 7 | . 4 1 . 2 Worker 1 | . . . . 1 Tunneler 1 | . . 1 . . Hauler 1 | . 1 . . . Operator 1 | . 1 . . . Swarmer 19 | . 9 7 . 3 Grunt 7 | . 6 . . 1 Assembled 16 | . . . . 16 Best Kill Streak 16 | . 4 2 . 16 Combat Bots Only 16 | . 4 2 . 16 Max Kills in Single Turn 4 | . 2 2 . 4 Gunslinging 1 | . 1 . . . Exploded 4 | . . . . 4 Melee . | . . . . . Uniques/NPCs Destroyed . | . . . . . Combat | -11 -10 -10 -10 -9 -------- Run | Jun Mat Min Exi Min Damage Taken 1140 | . 492 150 . 498 Core 251 | . 112 25 . 114 Absorbed by Shields . | . . . . . Core Remaining (%) 100 | 100 . . . . Volleys Fired 83 | . 44 17 . 22 Largest 2 | . 2 2 . 2 Hottest 80 | . 40 40 . 80 Shots Fired 156 | . 88 34 . 34 Gun 144 | . 88 34 . 22 Cannon 2 | . . . . 2 Launcher 10 | . . . . 10 Special . | . . . . . Kinetic 144 | . 88 34 . 22 Thermal . | . . . . . Explosive 10 | . . . . 10 Electromagnetic 2 | . . . . 2 Robot Hit Streak 8 | . 8 6 . 7 Robot Miss Streak 5 | . 5 3 . 4 Penetration Max . | . . . . . Secondary Targets 4 | . 4 . . . Max Gunslinging Chain 1 | . 1 . . . Shots Hit Robots 82 | . 52 14 . 16 Core Hits 84 | . 25 10 . 49 Critical Kills . | . . . . . Critical Parts Destroyed . | . . . . . Critical Strikes . | . . . . . Melee Attacks . | . . . . . Impact . | . . . . . Slashing . | . . . . . Piercing . | . . . . . Sneak Attacks . | . . . . . Combat Hostiles . | . . . . . Follow-up Attacks . | . . . . . Damage Inflicted 1904 | . 661 143 . 1100 Guns 906 | . 661 143 . 102 Cannons . | . . . . . Explosions 998 | . . . . 998 Melee . | . . . . . Ramming . | . . . . . Kinetic 906 | . 661 143 . 102 Thermal . | . . . . . Explosive 870 | . . . . 870 Electromagnetic 128 | . . . . 128 Impact . | . . . . . Slashing . | . . . . . Piercing . | . . . . . Highest Corruption 3 | . 1 1 1 3 Average Corruption 1 | . 1 1 1 1 Corruption Purged . | . . . . . Corruption Blocked . | . . . . . Effects 25 | . 4 12 4 5 Message Errors 8 | . 2 3 1 2 Matter Fused 8 | . 2 3 . 3 Heat Flow Errors 2 | . . 1 1 . Energy Discharges 3 | . . 1 2 . Parts Fused 1 | . . 1 . . Data Loss (minor) 1 | . . 1 . . Data Loss (major) 1 | . . 1 . . Alerts 1 | . . 1 . . Overload Shots . | . . . . . Overflow Damage 6 | . . . . 6 Projectiles . | . . . . . Explosions 6 | . . . . 6 Melee . | . . . . . Knockbacks . | . . . . . Impact . | . . . . . Kinetic . | . . . . . Secondary . | . . . . . Self-Inflicted Damage 54 | . . . . 54 Shots 2 | . . . . 2 Rammed . | . . . . . Targets Rammed . | . . . . . Kicked . | . . . . . Crushed . | . . . . . Highest Temperature 242 | . . 150 242 54 Average Temperature 71 | . . 83 184 18 Received Heat Transfer 144 | . 108 . . 36 Siege Activations . | . . . . . Robots Corrupted . | . . . . . Combat Hostiles . | . . . . . Parts Fried . | . . . . . Impact Corruptions . | . . . . . Robots Melted . | . . . . . Combat Hostiles . | . . . . . Parts Melted 1 | . . . . 1 Heat Transferred . | . . . . . Parts Sabotaged . | . . . . . Parts Stolen . | . . . . . Parts Stripped . | . . . . . Power Chain Reactions 1 | . . . . 1 Missiles Intercepted . | . . . . . Latent Energy Used 92 | . . . . 92 LE Corruption 2 | . . . . 2 Alert | -11 -10 -10 -10 -9 ------- Run | Jun Mat Min Exi Min Peak Influence 218 | . 218 137 . 192 Initial 25 | . . 25 . . Average 77 | . 125 41 . 43 Maximum Alert Level 1 | . 1 . . . Low Security (%) 99 | 100 98 100 . 100 Level 1 . | . 1 . . . Level 2 . | . . . . . Level 3 . | . . . . . Level 4 . | . . . . . Level 5 . | . . . . . High Security . | . . . . . Max Security . | . . . . . Squads Dispatched 2 | . 2 . . . Investigation 1 | . 1 . . . Extermination . | . . . . . Reinforcement 1 | . 1 . . . Assault . | . . . . . Garrison . | . . . . . Intercept . | . . . . . Searches Triggered . | . . . . . Construction Impeded . | . . . . . Haulers Reinforced . | . . . . . Active Scanning Responses . | . . . . . Cargo Convoy Interrupts . | . . . . . Stealth | -11 -10 -10 -10 -9 --------- Run | Jun Mat Min Exi Min Distress Signals 2 | . 1 . . 1 Communications Jammed . | . . . . . Distress Signals . | . . . . . Times Spotted 66 | . 27 11 . 28 Peak Tracking Total 16 | . 6 3 . 16 Tactical Retreats 6 | . 2 3 . 1 Traps | -11 -10 -10 -10 -9 ------- Run | Jun Mat Min Exi Min Traps Triggered 2 | . 2 . . . Indirectly . | . . . . . Trap Hack Attempts . | . . . . . Triggered . | . . . . . Disarmed . | . . . . . Reprogrammed . | . . . . . Reused . | . . . . . Traps Extracted . | . . . . . Installed . | . . . . . Triggered . | . . . . . Machines | -11 -10 -10 -10 -9 ---------- Run | Jun Mat Min Exi Min Machines Disabled 4 | . . . . 4 Max in Single Turn 4 | . . . . 4 Machines Repaired . | . . . . . Machines Sabotaged . | . . . . . Overloaded Fab Kills . | . . . . . Hacking | -11 -10 -10 -10 -9 --------- Run | Jun Mat Min Exi Min Machines Accessed 8 | . 6 1 1 . Terminals 7 | . 6 1 . . Fabricators . | . . . . . Repair Stations . | . . . . . Recycling Units . | . . . . . Scanalyzers . | . . . . . Garrison Access . | . . . . . Total Hacks 21 | . 16 4 1 . Successful 13 | . 9 3 1 . Failed 7 | . 6 1 . . Catastrophic 1 | . . 1 . . Database Lockouts 1 | . 1 . . . Manual 17 | . 14 2 1 . Terminals 20 | . 16 4 . . Fabricators . | . . . . . Repair Stations . | . . . . . Recycling Units . | . . . . . Scanalyzers . | . . . . . Garrison Access . | . . . . . Terminal Hacks 8 | . 4 3 1 . Part Schematic 1 | . . 1 . . Robot Analysis 1 | . 1 . . . Terminal Index 1 | . 1 . . . Dispatch Records 1 | . . 1 . . Hauler Manifests 1 | . 1 . . . Zone Layout 2 | . 1 1 . . EX-Prototype ID Bank 1 | . . . 1 . Fabricator Hacks . | . . . . . Repair Station Hacks . | . . . . . Recycling Unit Hacks . | . . . . . Scanalyzer . | . . . . . Garrison Access Hacks . | . . . . . Unauthorized Hacks 5 | . 5 . . . Terminals 5 | . 5 . . . Botnet 5 | . 5 . . . Fabricators . | . . . . . Repair Stations . | . . . . . Recycling Units . | . . . . . Scanalyzers . | . . . . . Garrison Access . | . . . . . Data Cores Recovered . | . . . . . Used . | . . . . . Hacking Detections 7 | . 6 1 . . Full Trace Events . | . . . . . Feedback Events . | . . . . . Feedback Blocked . | . . . . . Robot Schematics Acquired . | . . . . . Robots Built . | . . . . . Authchips . | . . . . . Time . | . . . . . Total Robot Build Rating . | . . . . . Part Schematics Acquired 1 | . . 1 . . Parts Built . | . . . . . Authchips . | . . . . . Time . | . . . . . Total Part Build Rating . | . . . . . Parts Repaired . | . . . . . Time . | . . . . . Parts Recycled . | . . . . . Recycled Matter . | . . . . . Retrieved Matter . | . . . . . Retrieved Components . | . . . . . Parts Scanalyzed . | . . . . . Part Schematics Acquired . | . . . . . Parts Damaged . | . . . . . Bothacking | -11 -10 -10 -10 -9 ------------ Run | Jun Mat Min Exi Min Used RIF Installer . | . . . . . Robots Hacked . | . . . . . Non-combat . | . . . . . Combat . | . . . . . Robot Hacks Applied . | . . . . . Relay Couplers Released . | . . . . . Fabnet Peak Effective % . | . . . . . Robots Rewired . | . . . . . Allies Hacked . | . . . . . Hacks Repelled . | . . . . . Allies | -11 -10 -10 -10 -9 -------- Run | Jun Mat Min Exi Min Total Allies 4 | . . 4 . . Largest Group 4 | . . 4 4 3 Highest-Rated Group 71 | . . 71 71 40 Highest-Rated Ally 31 | . . 31 31 16 Total Orders . | . . . . . Ally Attacks 40 | . . 5 . 35 Total Damage 376 | . . 42 . 334 Kills 5 | . . 1 . 4 Allies Corrupted . | . . . . . Allies Melted . | . . . . . Intel | -11 -10 -10 -10 -9 ------- Run | Jun Mat Min Exi Min Robot Analysis Total 1 | . 1 . . . Derelict Logs Recovered 2 | . . 1 . 1 Drone Launches . | . . . . . Drone Recoveries . | . . . . . Exploration | -11 -10 -10 -10 -9 ------------- Run | Jun Mat Min Exi Min Turns Passed 3472 | 56 1314 1233 423 446 Spaces Moved 1728 | 40 689 598 222 179 Core 8 | 8 . . . . Treads . | . . . . . Legs 1718 | 30 689 598 222 179 Wheels 2 | 2 . . . . Hover . | . . . . . Flight . | . . . . . Fastest Speed 50 | 50 120 190 190 190 Average Speed 176 | 105 155 191 190 207 Slowest Speed 260 | 120 190 260 190 260 Overloaded Moves . | . . . . . Propulsion Burnouts . | . . . . . Robots Hopped . | . . . . . Cave-ins Triggered . | . . . . . Exploration Rate (%) 56 | 3 92 94 62 30 Regions Visited 4 Branch Regions 3 Pre-discovered Areas 1 | . . 1 . . Known Exits Taken . | . . . . . Unknown Exits Taken 4 | 1 1 1 1 . Scrap Searched 1 | . . 1 . . Spaces Dug . | . . . . . Terrain Destroyed 64 | . . . . 64 Melee . | . . . . . Projectile . | . . . . . AOE 64 | . . . . 64 Terrain Rammed . | . . . . . Walls Destroyed . | . . . . . Machines Disabled . | . . . . . Actions | -11 -10 -10 -10 -9 --------- Run | Jun Mat Min Exi Min Total 2003 | 51 848 657 224 223 Wait 138 | . 94 30 2 12 Move 1724 | 39 688 597 221 179 Hop . | . . . . . Pick Up 20 | 4 9 5 1 1 Fast Attach 11 | 6 2 1 . 2 Attach 6 | 1 1 3 . 1 Detach 5 | 1 1 1 . 2 Swap 9 | . 5 1 . 3 Drop 7 | . 4 2 . 1 Fire 83 | . 44 17 . 22 Melee . | . . . . . Ram . | . . . . . Kick . | . . . . . Crush . | . . . . . Escape Stasis . | . . . . . Rewire . | . . . . . Trap . | . . . . . Miscellaneous . | . . . . . Route ------- -11/Junkyard -10/Materials (discovered 4 exits: [*Mat x3] / *Min) -10/Mines (discovered 3 exits: [*Mat x2] / *Exi) -10/Exiles -9/Mines History --------- Turn | Location | Event 2 | -11/Junkyard | Met Revision 17 9 | -11/Junkyard | Discovered new exit (range 16) 57 | -11/Junkyard | Entered Materials 139 | -10/Materials | Discovered new exit (range 15) 305 | -10/Materials | Build established: Mutant 361 | -10/Materials | Discovered new exit (range 3) 582 | -10/Materials | Discovered new exit (range 4) 603 | -10/Materials | Central database locked down 1051 | -10/Materials | Discovered new exit (range 10) 1371 | -10/Materials | Entered Mines 1603 | -10/Mines | Core integrity fell below 50% 1613 | -10/Mines | Escorted by a lone wolf Derelict 1633 | -10/Mines | Learned location of Storage (-8) 1864 | -10/Mines | Discovered new exit (range 8) 1933 | -10/Mines | Build established: Scavenger-Mutant 2081 | -10/Mines | Deemed a non-threat by the Exiles lab entrance 2083 | -10/Mines | Discovered new exit (range 5) 2159 | -10/Mines | Assisted by bots powering up and referring to "LRC-V3" 2432 | -10/Mines | Discovered new exit (range 9) 2436 | -10/Mines | Learned 8 Materials zone layouts 2445 | -10/Mines | YI-UF0 nonchalantly dropped a Grenade Launcher on the ground 2604 | -10/Mines | Entered Exiles 2604 | -10/Exiles | Accompanied by 4 allies 2648 | -10/Exiles | Met 8R-AWN 2684 | -10/Exiles | Met EX-HEX 2737 | -10/Exiles | Met EX-BIN 2760 | -10/Exiles | Aligned with FarCom system 2762 | -10/Exiles | Given EX-Vault access code 2806 | -10/Exiles | Opened EX-Vault 2819 | -10/Exiles | Found Latent Energy Streamer 2858 | -10/Exiles | Warned to stay clear of 0b10 Research branches 2915 | -10/Exiles | Met EX-DEC 3010 | -10/Exiles | Discovered new exit (range 10) 3027 | -10/Exiles | Left Exiles lab with Latent Energy Streamer 3027 | -10/Exiles | Entered Mines 3027 | -9/Mines | Accompanied by 3 allies 3067 | -9/Mines | Learned Materials terminal intel 3161 | -9/Mines | Assembled infested the area 3199 | -9/Mines | Destroyed 16 combat bots 3468 | -9/Mines | Core integrity fell below 20% 3473 | -9/Mines | Destroyed by D-53 Grenadier with Mini Grenade Launcher Last Messages --------------- 03380_ K-01 Serf collects debris. 03393_ U-05 Engineer builds a Wall. 03406_ K-01 Serf collects debris. 03414_ S-10 Pest destroyed. 03414_ Plasma Injector explodes. 03414_ S-10 Pest destroyed. 03414_ K-01 Serf destroyed. 03421_ U-05 Engineer lays Concrete. 03424_ U-05 Engineer builds a Wall. 03425_ U-05 Engineer lays Concrete. 03429_ U-05 Engineer builds a Wall. 03434_ U-05 Engineer lays Concrete. 03439_ U-05 Engineer builds a Wall. 03439_ U-05 Engineer lays Concrete. 03458_ Chain reaction triggered in Rnf. Ion Engine. 03460_ D-53 Grenadier destroyed. 03463_ Aluminum Leg destroyed. 03468_ The unstable cave ceiling collapses. 03471_ Lgt. Armor Plating destroyed. 03473_ Lgt. Assault Rifle destroyed. Map ----- +----------------------------------------------------+ | ???????????????????????? ????????????????????????? | | ???#?????#???????????????????????????????????????? | | ?#??????????####???????? ????????????????????????? | | #??????????## ##???????????? ???????????????????? | | ??########## #????????????? ?????????????????? | | ### ###?????????? ???????????????? | | ####???????? ?????????????? | | ##??????# ?????????????? | | # ## ###???# ?????????????? | | ## ##### ##??# #??????????????? | | ########???## ###% #???????????????? | | ????????#?#?##### #???????????????? | | #??????#?????#??## #????????????????? | | ??#???#??#????#?## =#?????????????????? | | #??##????##???### %#?????????????????? | | ?#?#??????#????# = #?????????????????? | | ???????????????# d% #?????????????????? | | #?#?????????#??# ??????????????????? | | ##?????????????# #??????????????????? | | ##???####??????# #### #??????????????????? | | #????##??#????### # ## #??????????????????? | | #????# ???????###? ## #??????????????????? | | ?##?#" ?????#???## #??????????????????? | | ????#" ??#??## #??????????????????? | | ????## ###### #??????????????????? | | ###?# * @ #??????????????????? | | ### [ [ ##??????????????????? | | ##" ###### ?????????????????? | | ### ??????## < ??????????????? | | #?# ????????## ????????????? | | ##?#"""""???????????#### ??????????? | | ###??#####???????????????# ??????????? | | ?????????????????????????? ## ??????????? | | ?????????????????????????? ##?? ???????????? | | ?????????????????????????? ##???? ???????????? | | ?????????????????????????? ##??????????????????? | | ??????????????????????????####???????????????????? | | ?????????????????????????????????????????????????? | | ?????????????????????????????????????????????????? | | | | | | | | | | | | | | | | | | | | | | | +----------------------------------------------------+ Best States ------------- Heat Dissipation 25 Energy Generation 12 Energy Capacity 265 Matter Stores 300 Matter Capacity 300 Sight Range 16 Terrain Scan Range 16 Terrain Scan Density 10 Armor Coverage 150 Evasion (%) 55 Item Schematics ----------------- Terrain Scanner | -10/Mines | Hacked Robot Schematics ------------------ None Fabricated ------------ Nothing Alien Tech Used ----------------- None Achievements -------------- None Challenges ------------ None Game ------ Seed PotentialProtonPerforator Manual? 0 Play Time 00:24:42 Cumulative 114.2 hours Start 2023.03.18 @ 01:33:16 End 2023.03.18 @ 02:03:17 Sessions 1 Manual Loads 0 Difficulty Rogue Special Mode None Game No. 69 Rogue 69 Adventurer 0 Explorer 0 Win Type - Total 0 Types 0/0/0/0/0/0/0/0/0 Lore% 43 Gallery% 54 Achievement% 42 Wizard Run 0 Options --------- ASCII 0 Keyboard 1 Movement Vi Keybinds 0 Fullscreen 1 Font 12/Smallcaps Map View 83x54 Tactical HUD 1 Map Filters NONE Filters NONE Steam 1 RUN: 07003d71-d071-4abe-880c-49c4703be589